Workbook

Sheet SM-sarja
B1: Kari Salo | E1: 17.7.1950
B2: MESTARUUSSARJA | E2: Runkosarja | I2: Kärkilyönnit (KL), pesänvälit | P2: Runkosarja TOP-30 | U2: Ylempi loppusarja | AB2: Alempi loppusarja | AI2: Arvo-ottelut | AM2: Mitalit
B3: Vuosi | C3: Sija | D3: Seura | E3: OTT | F3: KUN | G3: LÖI | H3: TOI | I3: KL | J3: 0 > 1 | K3: 1 > 2 | L3: 2 > 3 | M3: 3 > k | N3: KL-% | P3: LÖI | Q3: TOI | R3: L+T | S3: KL | U3: OTT | V3: KUN | W3: LÖI | X3: TOI | Y3: KL | Z3: KL-% | AB3: OTT | AC3: KUN | AD3: LÖI | AE3: TOI | AF3: KL | AG3: KL-% | AI3: IL | AJ3: LL | AK3: Cup | AL3: K | AM3: H | AN3: P
B4: 1980 | C4: 12. | D4: Tarmo | E4: 22 | F4: 0 | G4: 4 | H4: 12 | I4: 131 | J4: 42 | K4: 48 | L4: 37 | M4: 4 | N4: 68.6 % | S4: 10.
B5: 1981 | C5: 8. | D5: Tarmo | F5: ykkössarja
B6: 1982 | C6: 3. | D6: Tarmo | F6: ykkössarja
B7: 1983 | C7: 12. | D7: Tarmo | E7: 22 | F7: 1 | G7: 6 | H7: 11 | I7: 94 | J7: 28 | K7: 38 | L7: 21 | M7: 7 | N7: 51.1 %
B8: 1984
B9: 1985 | C9: 12. | D9: Tarmo | F9: ykkössarja
B10: 1986
B11: 1987 | C11: 3. | D11: Tarmo | F11: suomensarja
B12: Yhteensä | E12: 44 | F12: 1 | G12: 10 | H12: 23 | I12: 225 | J12: 70 | K12: 86 | L12: 58 | M12: 11 | N12: 60.2 % | P12: 0-0-0 | Q12: 0-0-0 | R12: 0-0-0 | S12: 0-0-0 | U12: 0 | V12: 0 | W12: 0 | X12: 0 | Y12: 0 | Z12: 0.0 % | AB12: 0 | AC12: 0 | AD12: 0 | AE12: 0 | AF12: 0 | AG12: 0.0 % | AI12: 0 | AJ12: 0 | AK12: 0 | AL12: 0 | AM12: 0 | AN12: 0
B13: Pesispörssi | D13: 120.0
B15: URA SM-SARJASSA | E15: OTT | F15: KUN | G15: LÖI | H15: TOI | I15: KL | K15: ka/L | L15: ka/T | M15: ka/KL | N15: KL-% | P15: ENSIMMÄISET RUNKOSARJASSA
B16: Runkosarja | E16: 44 | F16: 1 | G16: 10 | H16: 23 | I16: 225 | K16: 0.25 | L16: 0.52 | M16: 5.11 | N16: 60.2 % | P16: Ottelu | R16: 04.05. 1980 IT - Kiri 3-13 | Y16: 1. ottelu | AC16: 29 v 9 kk 17 pv
B17: Ylempi loppusarja | P17: Lyöty | R17: 18.05. 1980 IPV - IT 10-4 | Y17: 4. ottelu | AC17: 29 v 10 kk 1 pv
B18: Alempi loppusarja | P18: Tuotu | R18: 11.05. 1980 IiU - IT 6-1 | Y18: 2. ottelu | AC18: 29 v 9 kk 24 pv
B19: KAIKKI | E19: 44 | F19: 1 | G19: 10 | H19: 23 | I19: 225 | K19: 0.25 | L19: 0.52 | M19: 5.11 | N19: 60.2 % | P19: Kunnari | R19: 31.07. 1983 IT - KaMa 4-5 | Y19: 41. ottelu | AC19: 33 v 0 kk 14 pv
B21: Seurat | D21: Tarmo = Ikaalisten Tarmo (1908)

Sheet MYP, MSS
B1: Kari Salo | E1: 17.7.1950
B2: YKKÖSPESIS | E2: Runkosarja | L2: Runkosarja TOP-10 | Q2: Jatkosarjat | X2: SUOMENSARJA | AA2: Runkosarja | AH2: Runkosarja TOP-10 | AM2: Jatkosarjat
B3: Vuosi | C3: Sija | D3: Seura | E3: OTT | F3: KUN | G3: LÖI | H3: TOI | I3: KL | J3: KL-% | L3: LÖI | M3: TOI | N3: L+T | O3: KL | Q3: OTT | R3: KUN | S3: LÖI | T3: TOI | U3: KL | V3: KL-% | X3: Vuosi | Y3: Sija | Z3: Seura | AA3: OTT | AB3: KUN | AC3: LÖI | AD3: TOI | AE3: KL | AF3: KL-% | AH3: LÖI | AI3: TOI | AJ3: L+T | AK3: KL | AM3: OTT | AN3: KUN | AO3: LÖI | AP3: TOI | AQ3: KL | AR3: KL-%
B4: 1981 | C4: 8. | D4: Tarmo | E4: 9 | F4: 0 | G4: 3 | H4: 12 | I4: 50 | J4: 59.5 % | M4: 8. | Q4: 10 | R4: 0 | S4: 12 | T4: 13
B5: 1982 | C5: 3. | D5: Tarmo | E5: 9 | F5: 0 | G5: 4 | H5: 6 | Q5: 10 | R5: 0 | S5: 1 | T5: 7
B7: 1985 | C7: 12. | D7: Tarmo | E7: 1 | F7: 0 | G7: 0 | H7: 0
X9: 1987 | Y9: 3. | Z9: Tarmo | AA9: 1 | AB9: 0 | AC9: 0 | AD9: 0
B10: YHTEENSÄ | E10: =SUM(E4:E9) -> 19 | F10: =SUM(F4:F9) -> 0 | G10: =SUM(G4:G9) -> 7 | H10: =SUM(H4:H9) -> 18 | I10: =SUM(I4:I9) -> 50 | J10: 0.0 % | K10: =SUM(K4:K9) -> 0 | Q10: =SUM(Q4:Q9) -> 20 | R10: =SUM(R4:R9) -> 0 | S10: =SUM(S4:S9) -> 13 | T10: =SUM(T4:T9) -> 20 | U10: =SUM(U4:U9) -> 0 | V10: 0.0 % | W10: =SUM(W4:W9) -> 0 | X10: YHTEENSÄ | AA10: =SUM(AA4:AA9) -> 1 | AB10: =SUM(AB4:AB9) -> 0 | AC10: =SUM(AC4:AC9) -> 0 | AD10: =SUM(AD4:AD9) -> 0 | AE10: =SUM(AE4:AE9) -> 0 | AF10: 0.0 % | AG10: =SUM(AG4:AG9) -> 0 | AM10: =SUM(AM4:AM9) -> 0 | AN10: =SUM(AN4:AN9) -> 0 | AO10: =SUM(AO4:AO9) -> 0 | AP10: =SUM(AP4:AP9) -> 0 | AQ10: =SUM(AQ4:AQ9) -> 0 | AR10: 0.0 % | AS10: =SUM(AS4:AS9) -> 0
B12: KAIKKI OTTELUT | E12: OTT | F12: KUN | G12: LÖI | H12: TOI | I12: KL | J12: KL-% | L12: ka/L | M12: ka/T | N12: ka/l+t | O12: ka/kl | R12: Seurat | T12: Tarmo = Ikaalisten Tarmo (1908)
B13: SUPERPESIS | E13: 44 | F13: 1 | G13: 10 | H13: 23 | I13: 225 | J13: 51.1 % | K13: =PRODUCT(I13/J13) -> 440.3131115 | L13: =PRODUCT((F13+G13)/E13) -> 0.25 | M13: =PRODUCT(H13/E13) -> 0.52 | N13: =PRODUCT((F13+G13+H13)/E13) -> 0.77 | O13: =PRODUCT(I13/E13) -> 5.11
B14: YKKÖSPESIS | E14: =PRODUCT(E10+Q10) -> 39 | F14: =PRODUCT(F10+R10) -> 0 | G14: =PRODUCT(G10+S10) -> 20 | H14: =PRODUCT(H10+T10) -> 38 | I14: =PRODUCT(I10+U10) -> 50 | J14: 0.0 % | K14: =PRODUCT(K10+W10) -> 0 | L14: =PRODUCT((F14+G14)/E14) -> 0.51 | M14: =PRODUCT(H14/E14) -> 0.97 | N14: =PRODUCT((F14+G14+H14)/E14) -> 1.49 | O14: =PRODUCT(I14/9) -> 5.56
B15: SUOMENSARJA | E15: =PRODUCT(AA10+AM10) -> 1 | F15: =PRODUCT(AB10+AN10) -> 0 | G15: =PRODUCT(AC10+AO10) -> 0 | H15: =PRODUCT(AD10+AP10) -> 0 | I15: =PRODUCT(AE10+AQ10) -> 0 | J15: 0.0 % | K15: =PRODUCT(AG10+AS10) -> 0 | L15: =PRODUCT((F15+G15)/E15) -> 0.00 | M15: =PRODUCT(H15/E15) -> 0.00 | N15: =PRODUCT((F15+G15+H15)/E15) -> 0.00 | O15: =PRODUCT(I15/E15) -> 0.00
B16: YHTEENSÄ | E16: =SUM(E13:E15) -> 84 | F16: =SUM(F13:F15) -> 1 | G16: 30 | H16: 61 | I16: 275 | J16: 0.0 % | K16: =SUM(K13:K15) -> 440.3131115 | L16: =PRODUCT((F16+G16)/E16) -> 0.37 | M16: =PRODUCT(H16/E16) -> 0.73 | N16: =PRODUCT((F16+G16+H16)/E16) -> 1.10 | O16: =PRODUCT(I16/53) -> 5.19

Sheet Kärkilyönnit
B1: KÄRKILYÖNNIT RUNKOSARJASSA | V1: VUOSITTAISET SIJOITUKSET TOP - 30
G2: 0 > 1 | J2: 1 > 2 | M2: 2 > 3 | P2: 3 > k | S2: Yhteensä
B3: Vuosi | C3: Sija | D3: Seura | E3: OTT | F3: KL | G3: YHT | H3: % | I3: KL | J3: YHT | K3: % | L3: KL | M3: YHT | N3: % | O3: KL | P3: YHT | Q3: % | R3: KL | S3: YHT | T3: % | V3: Vuosi | W3: Sija | X3: Seura | Y3: 0 > 1 | Z3: 1 > 2 | AA3: 2 > 3 | AB3: 3 > k | AC3: KL
B4: 1980 | C4: 12. | D4: Tarmo | E4: 22 | F4: 42 | G4: 54 | H4: =PRODUCT(F4/G4) -> 77.3 % | I4: 48 | J4: 73 | K4: =PRODUCT(I4/J4) -> 66.1 % | L4: 37 | M4: 51 | N4: =PRODUCT(L4/M4) -> 73.2 % | O4: 4 | P4: 12 | Q4: 33.3 % | R4: 131 | S4: 190 | T4: 68.6 % | V4: 1980 | W4: 12. | X4: Tarmo | Y4: 11. | Z4: 5. | AA4: 10. | AC4: 10.
B5: **** | V5: ****
B6: 1983 | C6: 12. | D6: Tarmo | E6: 22 | F6: 28 | G6: 57 | H6: =PRODUCT(F6/G6) -> 49.1 % | I6: 38 | J6: 73 | K6: =PRODUCT(I6/J6) -> 52.1 % | L6: 21 | M6: 34 | N6: =PRODUCT(L6/M6) -> 61.8 % | O6: 7 | P6: 20 | Q6: =PRODUCT(O6/P6) -> 35.0 % | R6: 94 | S6: =PRODUCT(G6+J6+M6+P6) -> 184 | T6: =PRODUCT(R6/S6) -> 51.1 % | V6: 1983 | W6: 12. | X6: Tarmo | Y6: 30. | Z6: 13.
B7: Yhteensä | E7: =SUM(E4:E6) -> 44 | F7: =SUM(F4:F6) -> 70 | G7: =SUM(G4:G6) -> 111 | H7: =PRODUCT(F7/G7) -> 62.9 % | I7: =SUM(I4:I6) -> 86 | J7: =SUM(J4:J6) -> 146 | K7: =PRODUCT(I7/J7) -> 59.1 % | L7: =SUM(L4:L6) -> 58 | M7: =SUM(M4:M6) -> 85 | N7: =PRODUCT(L7/M7) -> 68.6 % | O7: =SUM(O4:O6) -> 11 | P7: =SUM(P4:P6) -> 32 | Q7: =PRODUCT(O7/P7) -> 34.4 % | R7: =SUM(R4:R6) -> 225 | S7: =SUM(S4:S6) -> 374 | T7: =PRODUCT(R7/S7) -> 60.2 %
